[Event "Early-Titled-Tuesday-Blitz-November-28-2023"]
[Site "Chess.com"]
[Date "2023.11.28"]
[Round "4"]
[White "KVAIDAN"]
[Black "Lady_Nika"]
[Result "0-1"]
[WhiteElo "2351"]
[BlackElo "2580"]
[TimeControl "180+1"]
[EndTime "8:38:30 PST"]
[Termination "Lady_Nika won by checkmate"]

1. f4 {[%clk 0:02:59.6]} 1... d5 {[%clk 0:02:59.2]} 2. Nf3 {[%clk 0:03:00]} 2...
c5 {[%clk 0:02:59.4]} 3. e3 {[%clk 0:03:00.5]} 3... Nc6 {[%clk 0:02:59.6]} 4.
Bb5 {[%clk 0:03:01.1]} 4... Bd7 {[%clk 0:02:59.1]} 5. b3 {[%clk 0:03:01.2]} 5...
Nf6 {[%clk 0:02:58.5]} 6. Bb2 {[%clk 0:03:01.4]} 6... a6 {[%clk 0:02:58.6]} 7.
Bxc6 {[%clk 0:03:00.8]} 7... Bxc6 {[%clk 0:02:58.9]} 8. O-O {[%clk 0:03:01.5]}
8... g6 {[%clk 0:02:54.6]} 9. Ne5 {[%clk 0:03:01.7]} 9... Rc8 {[%clk 0:02:53.7]}
10. d3 {[%clk 0:02:58.9]} 10... Bg7 {[%clk 0:02:50.7]} 11. Nd2 {[%clk
0:02:59.3]} 11... O-O {[%clk 0:02:49.9]} 12. Qe1 {[%clk 0:02:58.8]} 12... d4
{[%clk 0:02:49.7]} 13. e4 {[%clk 0:02:57.4]} 13... Nd7 {[%clk 0:02:48.7]} 14.
Nxd7 {[%clk 0:02:56.5]} 14... Qxd7 {[%clk 0:02:48.6]} 15. Qh4 {[%clk 0:02:56.2]}
15... b5 {[%clk 0:02:45.9]} 16. f5 {[%clk 0:02:49.7]} 16... Bf6 {[%clk
0:02:40.1]} 17. Qh3 {[%clk 0:02:47]} 17... Bb7 {[%clk 0:02:32.5]} 18. Nf3 {[%clk
0:02:42]} 18... Rc7 {[%clk 0:02:23.1]} 19. e5 {[%clk 0:02:36.8]} 19... Bg7
{[%clk 0:02:10.4]} 20. Ng5 {[%clk 0:02:33.8]} 20... h6 {[%clk 0:01:40.5]} 21. e6
{[%clk 0:02:13.2]} 21... fxe6 {[%clk 0:01:31.4]} 22. Nxe6 {[%clk 0:02:05.2]}
22... Rf6 {[%clk 0:01:28.7]} 23. Nxc7 {[%clk 0:02:03.7]} 23... Qxc7 {[%clk
0:01:28.4]} 24. Rae1 {[%clk 0:01:57.8]} 24... gxf5 {[%clk 0:01:27.3]} 25. Bc1
{[%clk 0:01:42.7]} 25... Rg6 {[%clk 0:01:25.8]} 26. Re2 {[%clk 0:01:36.6]} 26...
Bc8 {[%clk 0:01:21]} 27. Qh5 {[%clk 0:01:31.7]} 27... Kh7 {[%clk 0:01:19]} 28.
Bd2 {[%clk 0:01:17.4]} 28... e5 {[%clk 0:01:18.6]} 29. b4 {[%clk 0:01:17.7]}
29... c4 {[%clk 0:01:18.3]} 30. Be1 {[%clk 0:01:14.9]} 30... f4 {[%clk
0:01:16.1]} 31. Bh4 {[%clk 0:01:12.1]} 31... Bg4 {[%clk 0:01:15]} 32. Qxg6+
{[%clk 0:01:07.3]} 32... Kxg6 {[%clk 0:01:14.8]} 33. Ref2 {[%clk 0:01:06.4]}
33... cxd3 {[%clk 0:01:14.4]} 34. cxd3 {[%clk 0:01:06.4]} 34... Qc3 {[%clk
0:01:14.4]} 35. h3 {[%clk 0:01:03.2]} 35... Bf5 {[%clk 0:01:13.5]} 36. Rf3
{[%clk 0:01:00.7]} 36... Bxd3 {[%clk 0:01:12.5]} 37. Rd1 {[%clk 0:00:59.2]}
37... e4 {[%clk 0:01:11.4]} 38. Rxf4 {[%clk 0:00:59.7]} 38... Be5 {[%clk
0:01:11.1]} 39. Rf8 {[%clk 0:00:58.4]} 39... Bc4 {[%clk 0:01:07.9]} 40. Bf2
{[%clk 0:00:40.6]} 40... e3 {[%clk 0:01:06.5]} 41. Bh4 {[%clk 0:00:35.7]} 41...
e2 {[%clk 0:01:05.7]} 42. Re1 {[%clk 0:00:35.7]} 42... Bg3 {[%clk 0:01:01.7]}
43. Bxg3 {[%clk 0:00:34.7]} 43... Qxg3 {[%clk 0:01:01.2]} 44. Rf2 {[%clk
0:00:34.6]} 44... d3 {[%clk 0:01:00.2]} 45. Rc1 {[%clk 0:00:33.7]} 45... d2
{[%clk 0:00:59.6]} 46. Rb1 {[%clk 0:00:33.5]} 46... e1=Q+ {[%clk 0:00:59.5]} 47.
Rxe1 {[%clk 0:00:33]} 47... dxe1=Q+ {[%clk 0:00:59.9]} 48. Rf1 {[%clk
0:00:31.5]} 48... Qxf1# {[%clk 0:01:00.3]} 0-1

[Event "Early-Titled-Tuesday-Blitz-November-28-2023"]
[Site "Chess.com"]
[Date "2023.11.28"]
[Round "4"]
[White "StellarChessPro"]
[Black "AsaHoffmann"]
[Result "1-0"]
[WhiteElo "2540"]
[BlackElo "2350"]
[TimeControl "180+1"]
[EndTime "8:38:30 PST"]
[Termination "StellarChessPro won on time"]

1. b3 {[%clk 0:03:00.9]} 1... d6 {[%clk 0:02:58.7]} 2. Bb2 {[%clk 0:03:01.3]}
2... Nd7 {[%clk 0:02:57.4]} 3. Nf3 {[%clk 0:03:01]} 3... e5 {[%clk 0:02:57.1]}
4. d3 {[%clk 0:02:58.9]} 4... Ngf6 {[%clk 0:02:56.5]} 5. Nbd2 {[%clk 0:02:58]}
5... Be7 {[%clk 0:02:55.8]} 6. g3 {[%clk 0:02:58.6]} 6... c6 {[%clk 0:02:55.6]}
7. Bg2 {[%clk 0:02:59.3]} 7... O-O {[%clk 0:02:55.4]} 8. O-O {[%clk 0:03:00.1]}
8... Re8 {[%clk 0:02:55.4]} 9. e4 {[%clk 0:03:00.7]} 9... Bf8 {[%clk 0:02:53.3]}
10. d4 {[%clk 0:03:01.1]} 10... Qc7 {[%clk 0:02:52.7]} 11. dxe5 {[%clk
0:03:01.1]} 11... dxe5 {[%clk 0:02:52.3]} 12. Re1 {[%clk 0:02:58.8]} 12... a5
{[%clk 0:02:51.9]} 13. Nc4 {[%clk 0:02:58.8]} 13... b5 {[%clk 0:02:48.7]} 14.
Ncxe5 {[%clk 0:02:54.6]} 14... Nxe5 {[%clk 0:02:45.7]} 15. Nxe5 {[%clk
0:02:53.7]} 15... Rxe5 {[%clk 0:02:45.4]} 16. Bxe5 {[%clk 0:02:53.1]} 16... Qxe5
{[%clk 0:02:45.3]} 17. f4 {[%clk 0:02:51.5]} 17... Qc5+ {[%clk 0:02:42.9]} 18.
Kh1 {[%clk 0:02:51.5]} 18... Ng4 {[%clk 0:02:36.8]} 19. Qf3 {[%clk 0:02:31.6]}
19... Nf2+ {[%clk 0:02:24.3]} 20. Kg1 {[%clk 0:02:31.6]} 20... Nxe4+ {[%clk
0:02:17.3]} 21. Kh1 {[%clk 0:02:30.8]} 21... f5 {[%clk 0:01:51.6]} 22. h3 {[%clk
0:02:22.2]} 22... Bb7 {[%clk 0:01:45.3]} 23. Rac1 {[%clk 0:02:15.7]} 23... a4
{[%clk 0:01:43.8]} 24. Kh2 {[%clk 0:02:13.4]} 24... Qa3 {[%clk 0:01:37.8]} 25.
g4 {[%clk 0:02:08]} 25... Nf6 {[%clk 0:01:29.8]} 26. g5 {[%clk 0:02:03]} 26...
Ne4 {[%clk 0:01:26.6]} 27. h4 {[%clk 0:01:53.1]} 27... Qxa2 {[%clk 0:01:21.5]}
28. Bh3 {[%clk 0:01:48.2]} 28... g6 {[%clk 0:01:20.2]} 29. h5 {[%clk 0:01:48.5]}
29... Bd6 {[%clk 0:01:18.5]} 30. hxg6 {[%clk 0:01:48.5]} 30... hxg6 {[%clk
0:01:18.2]} 31. Rxe4 {[%clk 0:01:48.8]} 31... fxe4 {[%clk 0:01:10.5]} 32. Qxe4
{[%clk 0:01:43]} 32... Qa3 {[%clk 0:00:42.5]} 33. Be6+ {[%clk 0:01:19]} 33...
Kg7 {[%clk 0:00:31.2]} 34. Qd4+ {[%clk 0:01:15.9]} 34... Kh7 {[%clk 0:00:27.7]}
35. Rh1 {[%clk 0:01:12.3]} 35... c5 {[%clk 0:00:19.6]} 36. Qxd6 {[%clk
0:01:01.2]} 36... Bxh1 {[%clk 0:00:18.4]} 37. Qe7+ {[%clk 0:00:59.8]} 37... Kh8
{[%clk 0:00:15]} 38. Qf6+ {[%clk 0:01:00.2]} 38... Kh7 {[%clk 0:00:14.9]} 39.
Qf7+ {[%clk 0:00:56.9]} 39... Kh8 {[%clk 0:00:14.5]} 40. Qxg6 {[%clk 0:00:56.6]}
1-0

[Event "Early-Titled-Tuesday-Blitz-November-28-2023"]
[Site "Chess.com"]
[Date "2023.11.28"]
[Round "4"]
[White "kingofthenil"]
[Black "tusplingher"]
[Result "1-0"]
[WhiteElo "2700"]
[BlackElo "2508"]
[TimeControl "180+1"]
[EndTime "8:38:34 PST"]
[Termination "kingofthenil won by checkmate"]

1. e4 {[%clk 0:03:00.9]} 1... c5 {[%clk 0:02:55.6]} 2. Nc3 {[%clk 0:02:54.8]}
2... d6 {[%clk 0:02:52.9]} 3. d4 {[%clk 0:02:53.9]} 3... cxd4 {[%clk 0:02:49.8]}
4. Qxd4 {[%clk 0:02:54.8]} 4... Nc6 {[%clk 0:02:49.5]} 5. Qd3 {[%clk 0:02:51.2]}
5... Nf6 {[%clk 0:02:45.1]} 6. Nf3 {[%clk 0:02:48.6]} 6... g6 {[%clk 0:02:40.5]}
7. Be2 {[%clk 0:02:48.5]} 7... Bg7 {[%clk 0:02:38.9]} 8. O-O {[%clk 0:02:49]}
8... O-O {[%clk 0:02:38.5]} 9. Nd5 {[%clk 0:02:46.9]} 9... Bg4 {[%clk
0:02:31.7]} 10. c3 {[%clk 0:02:42.8]} 10... Rc8 {[%clk 0:02:24.2]} 11. Bg5
{[%clk 0:02:36.4]} 11... Nd7 {[%clk 0:02:13.9]} 12. h3 {[%clk 0:02:34.9]} 12...
Bxf3 {[%clk 0:02:08.7]} 13. Qxf3 {[%clk 0:02:34.4]} 13... h6 {[%clk 0:01:59.6]}
14. Bh4 {[%clk 0:02:33.9]} 14... g5 {[%clk 0:01:54.9]} 15. Bg3 {[%clk
0:02:31.1]} 15... Nde5 {[%clk 0:01:46.4]} 16. Qh5 {[%clk 0:02:27.6]} 16... Ng6
{[%clk 0:01:30.9]} 17. h4 {[%clk 0:02:21.4]} 17... e6 {[%clk 0:01:28.3]} 18.
hxg5 {[%clk 0:02:17.1]} 18... exd5 {[%clk 0:01:23.2]} 19. gxh6 {[%clk
0:02:16.2]} 19... Bf6 {[%clk 0:01:08.4]} 20. exd5 {[%clk 0:02:13]} 20... Nce7
{[%clk 0:01:05.8]} 21. Bd3 {[%clk 0:01:47]} 21... Kh7 {[%clk 0:01:03.7]} 22.
Rae1 {[%clk 0:01:46.7]} 22... Rc5 {[%clk 0:00:58.6]} 23. c4 {[%clk 0:01:46.2]}
23... a5 {[%clk 0:00:51.4]} 24. b3 {[%clk 0:01:46.2]} 24... b5 {[%clk
0:00:45.8]} 25. Re4 {[%clk 0:01:42.3]} 25... bxc4 {[%clk 0:00:43.1]} 26. bxc4
{[%clk 0:01:43.2]} 26... Qd7 {[%clk 0:00:21.8]} 27. Rg4 {[%clk 0:01:40.9]} 27...
Kh8 {[%clk 0:00:15.5]} 28. Re1 {[%clk 0:01:38.9]} 28... Ne5 {[%clk 0:00:12]} 29.
Rxe5 {[%clk 0:01:03.2]} 29... dxe5 {[%clk 0:00:12.9]} 30. Rg7 {[%clk 0:01:02.7]}
30... e4 {[%clk 0:00:05.5]} 31. Be5 {[%clk 0:00:52.8]} 31... Bxe5 {[%clk
0:00:04]} 32. Qxe5 {[%clk 0:00:53.7]} 32... f6 {[%clk 0:00:03.3]} 33. Qxe4
{[%clk 0:00:54.2]} 33... f5 {[%clk 0:00:02.7]} 34. Qe5 {[%clk 0:00:51.9]} 34...
Nc6 {[%clk 0:00:02.6]} 35. Qc3 {[%clk 0:00:47.9]} 35... Qd6 {[%clk 0:00:03]} 36.
Rh7+ {[%clk 0:00:46]} 36... Kxh7 {[%clk 0:00:03]} 37. Qg7# {[%clk 0:00:46.9]}
1-0

[Event "Early-Titled-Tuesday-Blitz-November-28-2023"]
[Site "Chess.com"]
[Date "2023.11.28"]
[Round "4"]
[White "Kostya0705"]
[Black "Felix-Rose"]
[Result "1-0"]
[WhiteElo "2536"]
[BlackElo "2345"]
[TimeControl "180+1"]
[EndTime "8:38:34 PST"]
[Termination "Kostya0705 won on time"]

1. e4 {[%clk 0:03:00.9]} 1... e5 {[%clk 0:02:59.6]} 2. Nf3 {[%clk 0:03:01.3]}
2... Nc6 {[%clk 0:03:00.1]} 3. Bc4 {[%clk 0:03:01.8]} 3... Nf6 {[%clk
0:03:00.2]} 4. d4 {[%clk 0:03:01.2]} 4... exd4 {[%clk 0:02:57]} 5. e5 {[%clk
0:03:02.1]} 5... d5 {[%clk 0:02:57.2]} 6. Bb5 {[%clk 0:03:02.2]} 6... Ne4 {[%clk
0:02:57.5]} 7. Nxd4 {[%clk 0:03:02.3]} 7... Bc5 {[%clk 0:02:57.9]} 8. Bxc6+
{[%clk 0:03:02.7]} 8... bxc6 {[%clk 0:02:58.1]} 9. O-O {[%clk 0:03:03.6]} 9...
O-O {[%clk 0:02:55.1]} 10. Be3 {[%clk 0:03:03.6]} 10... Qe8 {[%clk 0:02:49.5]}
11. Nd2 {[%clk 0:03:01.6]} 11... Nxd2 {[%clk 0:02:26.7]} 12. Qxd2 {[%clk
0:03:02.5]} 12... Rb8 {[%clk 0:02:27.3]} 13. b3 {[%clk 0:02:54.7]} 13... Bd7
{[%clk 0:02:14.8]} 14. f4 {[%clk 0:02:50.9]} 14... Qe7 {[%clk 0:02:07.9]} 15.
Rae1 {[%clk 0:02:49.5]} 15... a5 {[%clk 0:01:58.1]} 16. Kh1 {[%clk 0:02:47.3]}
16... a4 {[%clk 0:01:51.1]} 17. Bf2 {[%clk 0:02:44.8]} 17... axb3 {[%clk
0:01:49.1]} 18. axb3 {[%clk 0:02:44.8]} 18... Ra8 {[%clk 0:01:29.3]} 19. f5
{[%clk 0:02:41.8]} 19... Bxd4 {[%clk 0:01:26.7]} 20. Bxd4 {[%clk 0:02:30.4]}
20... Kh8 {[%clk 0:00:39.9]} 21. f6 {[%clk 0:02:28.6]} 21... gxf6 {[%clk
0:00:35.8]} 22. exf6 {[%clk 0:01:58.8]} 22... Qd6 {[%clk 0:00:35.6]} 23. Rf4
{[%clk 0:01:47.4]} 23... Rae8 {[%clk 0:00:27.9]} 24. Rxe8 {[%clk 0:01:32.5]}
24... Rxe8 {[%clk 0:00:26.7]} 25. Rh4 {[%clk 0:01:32.5]} 25... Bf5 {[%clk
0:00:19.5]} 26. Qh6 {[%clk 0:01:24.8]} 26... Qf8 {[%clk 0:00:07.4]} 27. Qd2
{[%clk 0:01:00.5]} 27... Be4 {[%clk 0:00:04.7]} 28. h3 {[%clk 0:00:58.2]} 28...
Qg8 {[%clk 0:00:05.1]} 29. Kh2 {[%clk 0:00:57]} 29... Qg6 {[%clk 0:00:04.2]} 30.
Rg4 {[%clk 0:00:55.1]} 30... Qf5 {[%clk 0:00:04.2]} 31. Qh6 {[%clk 0:00:52.6]}
31... Rg8 {[%clk 0:00:04]} 32. Rxg8+ {[%clk 0:00:51.8]} 1-0

[Event "Early-Titled-Tuesday-Blitz-November-28-2023"]
[Site "Chess.com"]
[Date "2023.11.28"]
[Round "4"]
[White "falzehope0"]
[Black "PabloZarnicki"]
[Result "0-1"]
[WhiteElo "2354"]
[BlackElo "2546"]
[TimeControl "180+1"]
[EndTime "8:38:35 PST"]
[Termination "PabloZarnicki won by resignation"]

1. d4 {[%clk 0:02:52.1]} 1... Nf6 {[%clk 0:02:59.3]} 2. e3 {[%clk 0:02:52.2]}
2... d5 {[%clk 0:02:58.3]} 3. Bd3 {[%clk 0:02:51.6]} 3... c5 {[%clk 0:02:52]} 4.
c3 {[%clk 0:02:51.6]} 4... Nc6 {[%clk 0:02:50.1]} 5. f4 {[%clk 0:02:51.7]} 5...
Bg4 {[%clk 0:02:39.9]} 6. Ne2 {[%clk 0:02:51.9]} 6... e6 {[%clk 0:02:39.1]} 7.
Nd2 {[%clk 0:02:48.5]} 7... c4 {[%clk 0:02:34.4]} 8. Bc2 {[%clk 0:02:48.2]} 8...
b5 {[%clk 0:02:35]} 9. a3 {[%clk 0:02:48.1]} 9... a5 {[%clk 0:02:35.1]} 10. O-O
{[%clk 0:02:47.6]} 10... Be7 {[%clk 0:02:33.3]} 11. Nf3 {[%clk 0:02:46.6]} 11...
Bxf3 {[%clk 0:02:27]} 12. gxf3 {[%clk 0:02:45.8]} 12... Qc7 {[%clk 0:02:23.5]}
13. Kh1 {[%clk 0:02:44]} 13... h6 {[%clk 0:02:23.7]} 14. e4 {[%clk 0:02:40.2]}
14... O-O-O {[%clk 0:02:20.4]} 15. b3 {[%clk 0:02:32.5]} 15... cxb3 {[%clk
0:02:16.4]} 16. Bxb3 {[%clk 0:02:31]} 16... dxe4 {[%clk 0:02:16.8]} 17. a4
{[%clk 0:02:25.3]} 17... exf3 {[%clk 0:02:13]} 18. Rxf3 {[%clk 0:02:21.6]} 18...
b4 {[%clk 0:02:13.4]} 19. Be3 {[%clk 0:02:14.3]} 19... Nd5 {[%clk 0:02:06]} 20.
c4 {[%clk 0:02:10.1]} 20... Nxe3 {[%clk 0:02:04.8]} 21. Rxe3 {[%clk 0:02:10.4]}
21... Bf6 {[%clk 0:01:44.9]} 22. d5 {[%clk 0:02:00.9]} 22... Bxa1 {[%clk
0:01:35.7]} 23. Qxa1 {[%clk 0:02:01.8]} 23... exd5 {[%clk 0:01:34.9]} 24. cxd5
{[%clk 0:02:01.5]} 24... Rhe8 {[%clk 0:01:34]} 25. Rxe8 {[%clk 0:01:37.3]} 25...
Rxe8 {[%clk 0:01:33.6]} 26. Ng3 {[%clk 0:01:37.5]} 26... Qxf4 {[%clk 0:01:11.2]}
27. dxc6 {[%clk 0:01:29.9]} 27... Qf3+ {[%clk 0:01:11.2]} 28. Kg1 {[%clk
0:01:28.6]} 28... Qxb3 {[%clk 0:01:06.2]} 29. Qxg7 {[%clk 0:01:12.7]} 29... Qe3+
{[%clk 0:01:05.2]} 30. Kg2 {[%clk 0:01:06.5]} 30... Qe6 {[%clk 0:00:59.7]} 31.
Qd4 {[%clk 0:00:31.5]} 31... Qxc6+ {[%clk 0:00:51.9]} 32. Kh3 {[%clk 0:00:30.8]}
32... Qd7+ {[%clk 0:00:51.6]} 33. Qxd7+ {[%clk 0:00:30.2]} 33... Kxd7 {[%clk
0:00:46.3]} 34. Nf5 {[%clk 0:00:31.1]} 34... b3 {[%clk 0:00:45.8]} 35. Nd4
{[%clk 0:00:25.6]} 35... b2 {[%clk 0:00:44.7]} 36. Nb3 {[%clk 0:00:24.5]} 36...
b1=Q {[%clk 0:00:37.9]} 37. Nxa5 {[%clk 0:00:25.4]} 37... Qf5+ {[%clk
0:00:36.7]} 38. Kg3 {[%clk 0:00:24.5]} 38... Re3+ {[%clk 0:00:34.6]} 39. Kg2
{[%clk 0:00:23.6]} 39... Qf3+ {[%clk 0:00:34.5]} 0-1

[Event "Early-Titled-Tuesday-Blitz-November-28-2023"]
[Site "Chess.com"]
[Date "2023.11.28"]
[Round "4"]
[White "averageFM"]
[Black "jcmesafischer"]
[Result "0-1"]
[WhiteElo "2605"]
[BlackElo "2341"]
[TimeControl "180+1"]
[EndTime "8:38:36 PST"]
[Termination "jcmesafischer won on time"]

1. e4 {[%clk 0:03:00.9]} 1... c5 {[%clk 0:02:59.6]} 2. Nf3 {[%clk 0:02:59.4]}
2... d6 {[%clk 0:02:58.4]} 3. d4 {[%clk 0:02:59.4]} 3... cxd4 {[%clk 0:02:58.8]}
4. Nxd4 {[%clk 0:03:00.3]} 4... Nf6 {[%clk 0:02:59.1]} 5. Nc3 {[%clk 0:03:00.9]}
5... a6 {[%clk 0:02:58.9]} 6. h3 {[%clk 0:03:00.8]} 6... e5 {[%clk 0:02:58.6]}
7. Nb3 {[%clk 0:03:00.5]} 7... Be7 {[%clk 0:02:58.1]} 8. g4 {[%clk 0:02:58.3]}
8... h6 {[%clk 0:02:57.5]} 9. Be3 {[%clk 0:02:56.2]} 9... Be6 {[%clk 0:02:57.1]}
10. Qf3 {[%clk 0:02:38.5]} 10... Nbd7 {[%clk 0:02:51]} 11. O-O-O {[%clk
0:02:37.2]} 11... Rc8 {[%clk 0:02:49.7]} 12. Kb1 {[%clk 0:02:35.6]} 12... b5
{[%clk 0:02:47.1]} 13. Rg1 {[%clk 0:02:25.5]} 13... Nb6 {[%clk 0:02:46.1]} 14.
g5 {[%clk 0:02:22.6]} 14... hxg5 {[%clk 0:02:45.7]} 15. Bxg5 {[%clk 0:02:19.4]}
15... Rxc3 {[%clk 0:02:41.4]} 16. Qxc3 {[%clk 0:02:12.7]} 16... Nxe4 {[%clk
0:02:41]} 17. Qc6+ {[%clk 0:02:12.7]} 17... Bd7 {[%clk 0:02:40.8]} 18. Qxe4
{[%clk 0:02:03.8]} 18... Bxg5 {[%clk 0:02:39.7]} 19. Rxd6 {[%clk 0:02:02]} 19...
Bf6 {[%clk 0:02:26.6]} 20. Nc5 {[%clk 0:01:43]} 20... Qc7 {[%clk 0:02:21.2]} 21.
Rxb6 {[%clk 0:01:04.8]} 21... Qxb6 {[%clk 0:02:09]} 22. Nxd7 {[%clk 0:01:02.9]}
22... Kxd7 {[%clk 0:02:06.5]} 23. Be2 {[%clk 0:00:51.8]} 23... Ke7 {[%clk
0:02:02.1]} 24. Rd1 {[%clk 0:00:28.2]} 24... Rd8 {[%clk 0:02:00.7]} 25. Rxd8
{[%clk 0:00:28]} 25... Kxd8 {[%clk 0:01:55.1]} 26. Bg4 {[%clk 0:00:19.5]} 26...
g6 {[%clk 0:01:31.1]} 27. a3 {[%clk 0:00:09]} 27... Ke7 {[%clk 0:01:05.4]} 28.
f4 {[%clk 0:00:06.7]} 28... Qg1+ {[%clk 0:01:04.4]} 29. Ka2 {[%clk 0:00:06.2]}
29... Qc5 {[%clk 0:01:05.3]} 30. Qb7+ {[%clk 0:00:05]} 30... Kf8 {[%clk
0:01:05.1]} 31. f5 {[%clk 0:00:03.8]} 31... Qc4+ {[%clk 0:00:53.5]} 32. Kb1
{[%clk 0:00:02.1]} 32... gxf5 {[%clk 0:00:51.4]} 33. Bxf5 {[%clk 0:00:01.1]}
33... Qf1+ {[%clk 0:00:51]} 34. Ka2 {[%clk 0:00:01.2]} 34... Qxf5 {[%clk
0:00:51.9]} 35. Qxa6 {[%clk 0:00:01.5]} 35... e4 {[%clk 0:00:51.2]} 36. Qd6+
{[%clk 0:00:01.5]} 36... Kg7 {[%clk 0:00:49.2]} 0-1

[Event "Early-Titled-Tuesday-Blitz-November-28-2023"]
[Site "Chess.com"]
[Date "2023.11.28"]
[Round "4"]
[White "millenium19"]
[Black "Witty_Alien"]
[Result "1-0"]
[WhiteElo "2491"]
[BlackElo "2246"]
[TimeControl "180+1"]
[EndTime "8:38:38 PST"]
[Termination "millenium19 won by checkmate"]

1. e4 {[%clk 0:02:06.5]} 1... c5 {[%clk 0:02:06.7]} 2. Nf3 {[%clk 0:02:05.7]}
2... d6 {[%clk 0:02:07]} 3. Bb5+ {[%clk 0:02:05.1]} 3... Bd7 {[%clk 0:02:06.7]}
4. Bxd7+ {[%clk 0:02:04.9]} 4... Nxd7 {[%clk 0:02:07.6]} 5. d4 {[%clk
0:02:03.7]} 5... cxd4 {[%clk 0:02:07.8]} 6. Qxd4 {[%clk 0:02:03.2]} 6... Ngf6
{[%clk 0:02:04.1]} 7. Bg5 {[%clk 0:02:02.4]} 7... g6 {[%clk 0:02:02.4]} 8. O-O
{[%clk 0:01:59.1]} 8... Bg7 {[%clk 0:02:02.9]} 9. Nc3 {[%clk 0:01:58.5]} 9...
O-O {[%clk 0:02:03]} 10. Qd2 {[%clk 0:01:58.8]} 10... Rc8 {[%clk 0:02:02.3]} 11.
Bh6 {[%clk 0:01:58.1]} 11... Qb6 {[%clk 0:01:37.4]} 12. Bxg7 {[%clk 0:01:55.1]}
12... Kxg7 {[%clk 0:01:37.4]} 13. Rab1 {[%clk 0:01:45.8]} 13... Rc5 {[%clk
0:01:25.5]} 14. Na4 {[%clk 0:01:27.4]} 14... Qc6 {[%clk 0:01:15.3]} 15. Nxc5
{[%clk 0:01:26.6]} 15... Nxc5 {[%clk 0:01:15.9]} 16. e5 {[%clk 0:01:24.5]} 16...
Nfe4 {[%clk 0:01:14.6]} 17. Qe3 {[%clk 0:01:21]} 17... d5 {[%clk 0:01:10.1]} 18.
Nd4 {[%clk 0:01:06.5]} 18... Qc7 {[%clk 0:01:02.6]} 19. c4 {[%clk 0:01:01.7]}
19... Qxe5 {[%clk 0:01:01.4]} 20. f3 {[%clk 0:00:57.5]} 20... f5 {[%clk
0:00:26]} 21. cxd5 {[%clk 0:00:48.7]} 21... f4 {[%clk 0:00:18.6]} 22. Ne6+
{[%clk 0:00:42.5]} 22... Kg8 {[%clk 0:00:07.3]} 23. Qd4 {[%clk 0:00:38]} 23...
Qxd4+ {[%clk 0:00:04.9]} 24. Nxd4 {[%clk 0:00:38.3]} 24... Nd2 {[%clk
0:00:05.8]} 25. Rbc1 {[%clk 0:00:35.6]} 25... Nxf1 {[%clk 0:00:06.1]} 26. Rxc5
{[%clk 0:00:35.6]} 26... Ne3 {[%clk 0:00:05.9]} 27. Ne6 {[%clk 0:00:31.8]} 27...
Rf5 {[%clk 0:00:03.8]} 28. Rc8+ {[%clk 0:00:30.7]} 28... Kf7 {[%clk 0:00:02.2]}
29. Rf8# {[%clk 0:00:30.9]} 1-0

[Event "Early-Titled-Tuesday-Blitz-November-28-2023"]
[Site "Chess.com"]
[Date "2023.11.28"]
[Round "4"]
[White "Barmen_EV"]
[Black "psychokiller48"]
[Result "0-1"]
[WhiteElo "2512"]
[BlackElo "2714"]
[TimeControl "180+1"]
[EndTime "8:38:40 PST"]
[Termination "psychokiller48 won by checkmate"]

1. e4 {[%clk 0:02:50]} 1... e5 {[%clk 0:03:00.1]} 2. Nf3 {[%clk 0:02:47.9]} 2...
Nc6 {[%clk 0:03:00.2]} 3. Nc3 {[%clk 0:02:48.6]} 3... Nf6 {[%clk 0:03:00.3]} 4.
Bb5 {[%clk 0:02:49.3]} 4... Nd4 {[%clk 0:03:00.2]} 5. Bc4 {[%clk 0:02:47.7]}
5... Bc5 {[%clk 0:02:59.4]} 6. Nxe5 {[%clk 0:02:43.2]} 6... Qe7 {[%clk
0:02:54.3]} 7. Nf3 {[%clk 0:02:35.5]} 7... d5 {[%clk 0:02:52.1]} 8. Nxd5 {[%clk
0:02:07.5]} 8... Qxe4+ {[%clk 0:02:18.8]} 9. Ne3 {[%clk 0:02:06.5]} 9... Bg4
{[%clk 0:02:02.3]} 10. Be2 {[%clk 0:01:55.8]} 10... Nxe2 {[%clk 0:01:47.3]} 11.
Qxe2 {[%clk 0:01:54.6]} 11... O-O-O {[%clk 0:01:47.1]} 12. O-O {[%clk 0:01:28]}
12... h5 {[%clk 0:01:42.5]} 13. d3 {[%clk 0:01:24.4]} 13... Qg6 {[%clk
0:01:33.4]} 14. Kh1 {[%clk 0:00:56.4]} 14... Rde8 {[%clk 0:01:30.3]} 15. d4
{[%clk 0:00:51.1]} 15... Bxd4 {[%clk 0:01:16.5]} 16. Bd2 {[%clk 0:00:41.9]}
16... Ne4 {[%clk 0:01:01.7]} 17. Rad1 {[%clk 0:00:26.4]} 17... Bb6 {[%clk
0:00:44.5]} 18. Qd3 {[%clk 0:00:15.8]} 18... Rd8 {[%clk 0:00:37.5]} 19. Ne5
{[%clk 0:00:05.2]} 19... Rxd3 {[%clk 0:00:25.2]} 20. Nxg6 {[%clk 0:00:05.3]}
20... Rxd2 {[%clk 0:00:19.8]} 21. Nxh8 {[%clk 0:00:03.6]} 21... Bxd1 {[%clk
0:00:17.5]} 22. Nxd1 {[%clk 0:00:04.5]} 22... Rxd1 {[%clk 0:00:17]} 23. Kg1
{[%clk 0:00:02.4]} 23... Bxf2+ {[%clk 0:00:15.9]} 24. Kh1 {[%clk 0:00:03.1]}
24... Rxf1# {[%clk 0:00:16.7]} 0-1